[Event "RLP-ch Rapid 2024"]
[Site "Landau"]
[Date "2024.05.04"]
[Round "5.2"]
[White "Barzen, Pascal"]
[Black "Hinrichs, Paul"]
[Result "1-0"]
[ECO "C93"]
[WhiteElo "2291"]
[BlackElo "2255"]
[Annotator "NA RC"]
[PlyCount "95"]
[EventDate "2024.05.03"]
[EventType "swiss"]
[EventCountry "GER"]
[SourceTitle "playchess.com"]
[Source "ChessBase"]
[SourceQuality "1"]
[TimeControl "900+5"]

1. e4 {[%emt 0:00:05]} e5 {[%emt 0:00:01]} 2. Nf3 {[%emt 0:00:02]} Nc6 {[%emt 0:00:00]} 3. Bb5 {[%emt 0:00:01]} a6 {[%emt 0:00:01]} 4. Ba4 {[%emt 0:00:01]} Nf6 {[%emt 0:00:01]} 5. O-O {[%emt 0:00:05]} Be7 {[%emt 0:00:01]} 6. Re1 {[%emt 0:00:06]} b5 {[%emt 0:00:02]} 7. Bb3 {[%emt 0:00:00]} d6 {[%emt 0:00:01]} 8. c3 {[%emt 0:00:02]} O-O {[%emt 0:00:08]} 9. h3 {[%emt 0:00:03]} Bb7 {[%emt 0:00:01]} 10. d4 {[%emt 0:00:11]} Re8 {[%emt 0:00:01]} 11. Nbd2 {[%emt 0:00:01]} Bf8 {[%emt 0:00:01]} 12. a3 {[%emt 0:00:06]} h6 {[%emt 0:00:11]} 13. Bc2 {[%emt 0:00:08]} Nb8 {[%emt 0:00:37]} 14. b3 {[%emt 0:01:30]} Nbd7 {[%emt 0:01:04]} 15. d5 {[%emt 0:00:15]} c6 {[%emt 0:00:28]} 16. c4 {[%emt 0:00:03]} a5 {[%emt 0:00:27]} 17. a4 {[%emt 0:00:12]} b4 {[%emt 0:00:06]} 18. Nf1 {[%emt 0:00:04]} cxd5 {[%emt 0:00:11]} 19. exd5 {[%emt 0:00:17]} Nc5 {[%emt 0:00:08]} 20. Ng3 {[%emt 0:00:09]} g6 {[%emt 0:00:05]} 21. Be3 {[%emt 0:00:21]} Nfd7 {[%emt 0:00:04]} 22. Qd2 {[%emt 0:00:35]} Kh7 {[%emt 0:00:05]} 23. h4 {[%emt 0:00:36]} e4 {[%emt 0:02:25]} 24. Nd4 {[%emt 0:01:26]} Qxh4 {[%emt 0:00:21]} 25. Nb5 {[%emt 0:00:11]} Rac8 {[%emt 0:00:35]} 26. Bf4 {[%emt 0:00:35]} Qf6 {[%emt 0:00:49]} 27. Rad1 {[%emt 0:00:45]} Ba6 {[%emt 0:00:23]} 28. Nd4 {[%emt 0:01:22]} Bg7 {[%emt 0:02:46]} 29. Nc6 {[%emt 0:00:50]} Nd3 {[%emt 0:04:55]} 30. Bxd3 {[%emt 0:00:23]} exd3 {[%emt 0:00:01]} 31. Be3 {[%emt 0:00:32]} Qh4 {[%emt 0:00:22]} 32. Qxd3 {[%emt 0:00:25]} Ne5 {[%emt 0:00:04]} 33. Nxe5 {[%emt 0:00:09]} Rxe5 {[%emt 0:00:02]} 34. Bb6 {[%emt 0:00:31]} Rce8 {[%emt 0:00:57]} 35. Rxe5 {[%emt 0:00:02]} Rxe5 {[%emt 0:00:08]} 36. Bxa5 {[%emt 0:00:11]} Bc8 {[%emt 0:00:14]} 37. Bxb4 {[%emt 0:00:08]} Bg4 {[%emt 0:00:01]} 38. Re1 {[%emt 0:00:06]} f5 {[%emt 0:00:12]} 39. Rxe5 {[%emt 0:05:51]} Bxe5 40. Bc3 {[%emt 0:00:00]} f4 {[%emt 0:00:15]} 41. Bxe5 {[%emt 0:00:00]} dxe5 {[%emt 0:00:01]} 42. Ne4 {[%emt 0:00:00]} Bf5 {[%emt 0:00:06]} 43. d6 {[%emt 0:00:00]} Qd8 {[%emt 0:00:10]} 44. c5 {[%emt 0:00:00]} Qa8 {[%emt 0:00:03]} 45. f3 {[%emt 0:00:00]} Qa7 {[%emt 0:00:05]} 46. Qd5 {[%emt 0:00:00]} Bxe4 {[%emt 0:00:07]} 47. fxe4 {[%emt 0:00:00]} Qa5 {[%emt 0:00:01]} 48. Qb7+ {[%emt 0:00:00]} 1-0

[Event "RLP-ch Rapid 2024"]
[Site "Landau"]
[Date "2024.05.04"]
[Round "5.3"]
[White "Sidletskyi, Ivan"]
[Black "Lang, Torsten"]
[Result "1-0"]
[ECO "A36"]
[WhiteElo "2346"]
[BlackElo "2299"]
[Annotator "TA"]
[PlyCount "111"]
[EventDate "2024.05.03"]
[EventType "swiss"]
[EventCountry "GER"]
[SourceTitle "playchess.com"]
[Source "ChessBase"]
[SourceQuality "1"]
[TimeControl "900+5"]

{[%evp 15,111,26,22,26,19,0,15,-10,31,20,34,-28,-24,-30,88,66,69,59,48,-19,-11,-19,-15,0,0,-8,39,22,47,-75,-65,-53,-35,-36,-43,-69,0,0,0,0,0,0,9,-26,0,0,30,0,100,117,100,0,0,0,1582,1358,1163,1093,1233,1081,1214,1104,1301,1050,1015,864,1026,0,1081,0,940,960,1516,1319,1125,1400,1222,1441,29990,1544,2612,2414,2787,2189,2584,2383,2600,2168,29981,29982,29982,29983,29983,29984,29988,29989,29989,29988]} 1. c4 {[%emt 0:00:01]} g6 {[%emt 0:00:06]} 2. Nc3 {[%emt 0:00:02]} Bg7 {[%emt 0:00:02]} 3. e4 {[%emt 0:00:14]} c5 {[%emt 0:00:05]} 4. g3 {[%emt 0:00:02]} Nc6 {[%emt 0:00:05]} 5. Bg2 {[%emt 0:00:01]} Nf6 {[%emt 0:00:10][%cal Bg8f6,Bf6e8,Be8c7,Bc7e6,Be6d4,Bd4e2][%mdl 32]} 6. Nge2 {[%emt 0:00:01]} O-O {[%emt 0:00:09]} 7. O-O {[%emt 0:00:01]} Ne8 {[%emt 0:00:08]} 8. d3 {[%emt 0:00:39]} Nc7 {[%emt 0:00:04]} 9. Be3 {[%emt 0:00:20]} Ne6 {[%emt 0:00:05]} 10. f4 {[%emt 0:00:14]} Ned4 {[%emt 0:00:25]} 11. Rb1 {[%emt 0:00:40] The position is equal.} e6 {[%emt 0:00:35]} 12. a3 {[%emt 0:00:52][%cal Ba2a3,Ba3b4,Bb4b5][%mdl 32]} a5 {[%emt 0:00:07] [#]} 13. b4 {[%emt 0:02:19]} axb4 $11 {[%emt 0:00:09]} 14. axb4 {[%emt 0:00:01]} b6 {[%emt 0:04:09]} (14... Nxb4 15. e5 Nxe2+ 16. Qxe2 $11) (14... cxb4 15. Nb5 Nxb5 16. cxb5 $16) (14... Nxe2+ $1 $11 15. Nxe2 cxb4) 15. b5 {[%emt 0:00:25]} Nxe2+ {[%emt 0:00:55]} 16. Nxe2 {[%emt 0:00:02]} Na5 {[%emt 0:00:21]} 17. e5 {[%emt 0:01:42]} ({White should play} 17. f5 $14) 17... Bb7 {[%emt 0:00:31]} 18. Bxb7 {[%emt 0:02:11]} Nxb7 {[%emt 0:00:01]} 19. d4 {[%emt 0:01:04]} Qc7 {[%emt 0:01:52]} 20. Nc3 {[%emt 0:00:52]} d6 {[%emt 0:01:08]} (20... Ra3 $11 21. Rc1 d6 22. dxc5 bxc5) 21. dxc5 $14 {[%emt 0:00:22]} bxc5 {[%emt 0:00:56]} 22. exd6 {[%emt 0:01:05]} (22. Qf3 $14 {stays ahead.}) 22... Nxd6 $17 {[%emt 0:00:03]} 23. Qb3 {[%emt 0:00:57]} Nf5 {[%emt 0:00:13]} 24. Ne2 {[%emt 0:00:01]} Rfd8 {[%emt 0:00:35]} 25. Rbd1 {[%emt 0:00:11]} Qb6 {[%emt 0:00:22]} (25... Nxe3 $1 $15 26. Qxe3 Ra2) 26. Bf2 $11 {[%emt 0:00:14]} h5 {[%emt 0:00:04]} 27. Rxd8+ {[%emt 0:00:06]} Rxd8 {[%emt 0:00:03]} 28. Rd1 {[%emt 0:00:04] Prevents Rd2} Nd4 {[%emt 0:01:19]} 29. Bxd4 {[%emt 0:00:02]} Bxd4+ {[%emt 0:00:03]} 30. Kg2 {[%emt 0:00:07]} Ra8 {[%emt 0:00:30]} 31. Rd2 {[%emt 0:00:45]} Ra1 {[%emt 0:00:02]} (31... Bf6 $11) 32. Nxd4 $16 {[%emt 0:00:47]} cxd4 {[%emt 0:00:02][%mdl 4096] Endgame. [#] KQR-KQR} 33. Qd3 {[%emt 0:00:01]} (33. Qb2 $1 $16 {[%cal Rb2a1]} Re1 (33... Qb7+ $2 34. Kh3 $18) 34. Rxd4 (34. Qxd4 Qb7+ 35. Kh3 Qf3 $11)) 33... Qb7+ $11 {[%emt 0:00:11]} 34. Kh3 {[%emt 0:00:15]} Rg1 $2 {[%emt 0:00:37][%mdl 8192] Black is on the road to losing.} (34... e5 $11) 35. Qxd4 $18 {[%emt 0:00:11]} Qh1 {[%emt 0:00:28]} 36. Qf6 {[%emt 0:00:15] White threatens Rd8+ and mate.} Rxg3+ {[%emt 0:01:08]} 37. Kxg3 {[%emt 0:00:01]} Qe1+ {[%emt 0:00:09]} 38. Rf2 {[%emt 0:00:02]} Qe3+ {[%emt 0:00:13]} 39. Kg2 {[%emt 0:00:02]} Qe4+ {[%emt 0:00:02]} 40. Kf1 {[%emt 0:00:07]} Qb1+ {[%emt 0:00:07]} 41. Kg2 {[%emt 0:00:14]} Qe4+ {[%emt 0:00:02]} 42. Kf1 {[%emt 0:00:35]} Qb1+ $1 {[%emt 0:00:01]} 43. Ke2 {[%emt 0:00:00]} Qc2+ {[%emt 0:00:03] [#]} 44. Ke3 $1 {[%emt 0:00:02]} Qc1+ {[%emt 0:00:06]} 45. Rd2 {[%emt 0:00:06] White wants to mate with Ke2.} Qe1+ {[%emt 0:00:15]} 46. Kd3 {[%emt 0:00:11] Kc2 would kill now.} Qb1+ {[%emt 0:00:01]} 47. Rc2 {[%emt 0:00:02]} (47. Ke2 $142 Qe4+ 48. Kf2 Qa8 49. Rd8+ Qxd8 50. Qxd8+ Kg7 51. b6 g5 52. Qxg5+ (52. fxg5 Kh7 53. b7 h4 54. Qf6 h3 55. Qxf7+ Kh8 56. b8=Q#) 52... Kh7 53. b7 (53. Qxh5+ Kg8 54. b7 Kf8 55. b8=Q+ Ke7 56. Qc7+ Kf8 57. Qhxf7#) 53... f6 54. Qxh5+ (54. b8=Q fxg5 55. fxg5 Kg6 56. Qf4 h4 57. Qf6+ Kh7 58. Qf7+ Kh8 59. g6 h3 60. Qh7#) 54... Kg7 55. b8=Q f5 56. Qbh8#) 47... Qd1+ {[%emt 0:00:03]} 48. Kc3 {[%emt 0:00:06]} Qa1+ {[%emt 0:00:02]} 49. Rb2 {[%emt 0:00:01]} Qa3+ {[%emt 0:00:07]} 50. Kd2 {[%emt 0:00:07] Threatening mate with b6.} Qf3 {[%emt 0:00:11]} 51. Qd4 {[%emt 0:00:10]} h4 {[%emt 0:00:07][%cal Bh5h4,Bh4h3][%mdl 32]} 52. b6 {[%emt 0:00:03] White mates.} Qg2+ {[%emt 0:00:05]} 53. Kc3 {[%emt 0:00:02]} Qf3+ {[%emt 0:00:02]} 54. Kb4 {[%emt 0:00:02]} h3 {[%emt 0:00:04]} 55. Rb3 {[%emt 0:00:10]} Qg2 {[%emt 0:00:03]} 56. Kb5 {[%emt 0:00:12] Weighted Error Value: White=0.63/Black=0.28 (precise) .  Loses game:     	---       	Black=1      Mistake:       	White=4     	Black=4      Inaccurate:     	White=3     	Black=4      OK:         	White=7     	Black=10     Best:        	White=4     	---        Strong:       	---       	Black=1} 1-0

[Event "RLP-ch Rapid 2024"]
[Site "Landau"]
[Date "2024.05.04"]
[Round "5.4"]
[White "Boder, Jan"]
[Black "Commercon, Simon"]
[Result "1-0"]
[ECO "E69"]
[WhiteElo "2318"]
[BlackElo "2204"]
[Annotator "TA"]
[PlyCount "123"]
[EventDate "2024.05.03"]
[EventType "swiss"]
[EventCountry "GER"]
[SourceTitle "playchess.com"]
[Source "ChessBase"]
[SourceQuality "1"]
[TimeControl "900+5"]

{[%evp 22,123,8,-38,-7,-35,-34,-41,122,14,8,11,67,76,79,75,98,43,52,37,61,75,68,55,83,52,71,67,209,83,139,110,108,114,426,422,1028,1028,964,128,110,114,142,144,138,144,181,180,391,169,422,448,440,435,418,267,581,543,822,545,534,525,480,441,516,525,604,592,602,604,703,711,726,729,762,747,830,813,1447,1574,1905,1622,1229,1645,1678,1641,1798,1527,1789,1564,1525,1497,1585,1376,5579,5704,29979,29980,29981,29982,29982,29983,29983,29983]} 1. c4 {[%emt 0:00:01]} Nf6 {[%emt 0:00:04]} 2. g3 {[%emt 0:00:01]} g6 {[%emt 0:00:08]} 3. Bg2 {[%emt 0:00:02]} Bg7 {[%emt 0:00:04]} 4. Nc3 {[%emt 0:00:01]} d6 {[%emt 0:00:10]} 5. d4 {[%emt 0:00:02]} O-O {[%emt 0:00:10]} 6. Nf3 {[%emt 0:00:01]} Nbd7 {[%emt 0:01:44]} 7. O-O {[%emt 0:00:03]} e5 {[%emt 0:00:04]} 8. e4 {[%emt 0:00:02]} c6 {[%emt 0:00:02]} 9. h3 {[%emt 0:00:02]} Qb6 {[%emt 0:00:03]} 10. c5 {[%emt 0:00:13]} dxc5 {[%emt 0:01:24]} 11. dxe5 {[%emt 0:00:01]} Ne8 {[%emt 0:00:12]} 12. Bg5 {[%emt 0:00:19]} (12. Na4 $11 Qa5 13. e6 fxe6 14. Be3) 12... Nxe5 {[%emt 0:01:14]} 13. Be7 {[%emt 0:01:46]} Qxb2 {[%emt 0:01:30]} 14. Rc1 {[%emt 0:00:18] [#]} Be6 $2 {[%emt 0:02:36]} 15. Bxc5 {[%emt 0:03:59]} (15. Nxe5 $16 {Hoping for Nd3.} Bxe5 16. Na4 Qxa2 17. Nxc5 (17. Bxf8 Bb3 $16)) 15... Nxf3+ $11 {[%emt 0:01:52]} 16. Qxf3 {[%emt 0:00:09]} b6 {[%emt 0:00:25]} 17. Bxf8 $14 {[%emt 0:00:24]} Kxf8 {[%emt 0:00:05] [#]} 18. e5 $1 {[%emt 0:00:21]} Rc8 {[%emt 0:01:06]} (18... Bxe5 19. Qe3) 19. Rb1 {[%emt 0:01:06]} (19. Qe3 $16) 19... Qa3 {[%emt 0:00:01]} 20. Rfe1 $36 {[%emt 0:00:08][%mdl 2048] White is more active.} Qa5 {[%emt 0:00:16]} 21. Qe3 {[%emt 0:00:25]} Kg8 {[%emt 0:00:14]} 22. f4 {[%emt 0:00:02]} h5 {[%emt 0:00:06][%cal Oe8d6]} 23. Kh2 {[%emt 0:00:04]} Bf8 {[%emt 0:00:05][%cal Oe8g7]} 24. Ne4 {[%emt 0:00:09]} Bd5 {[%emt 0:00:09]} ({Better is} 24... Be7 $14) 25. Rec1 {[%emt 0:00:22]} (25. f5 $1 $18 {Qg5 would now be deadly.} Qxa2 26. fxg6 fxg6 27. Rbd1) 25... Be7 {[%emt 0:00:13] [#] Against Qg5} (25... Qxa2 $142 26. Ra1 Qb2) 26. a4 $1 {[%emt 0:00:40][%cal Of4f5][%mdl 512]} Rd8 {[%emt 0:00:04]} 27. Rd1 {[%emt 0:00:51][%cal Of4f5]} Kf8 $2 {[%emt 0:00:09][%mdl 8192]} (27... Qxa4 $2 28. Ra1 Qb4 (28... Qc2 $2 29. Rd2 $18) 29. Rxa7 $18) (27... Ng7 $16) 28. f5 $1 $18 {[%emt 0:00:23]} gxf5 {[%emt 0:00:37]} (28... Bxe4 $142 29. Qh6+ (29. Qxe4 Rxd1 30. Rxd1 gxf5 $18) (29. Bxe4 Qxe5 30. Qh6+ Qg7 $18) 29... Kg8) 29. Qh6+ {[%emt 0:00:02]} Kg8 {[%emt 0:00:23]} 30. Nf6+ $2 {[%emt 0:00:04]} (30. Ng5 $18 {and the rest is easy. Qh7+ would kill now.} Bxg5 31. Qxg5+ Kf8 32. Qxd8) 30... Bxf6 $16 {[%emt 0:00:07]} 31. exf6 {[%emt 0:00:02]} Qc3 {[%emt 0:00:15] [#]} 32. Qg5+ $1 {[%emt 0:02:06]} ({Don't take} 32. Qxh5 Qxf6 33. Bxd5 Rxd5 $14) 32... Kf8 {[%emt 0:00:03]} 33. Qxf5 {[%emt 0:00:28] White is more active.} ({Resist} 33. Qxh5 $6 Qxf6 34. Bxd5 Rxd5 $16) 33... Qxf6 {[%emt 0:00:09]} 34. Qxh5 {[%emt 0:00:15]} Qf2 $2 {[%emt 0:01:01]} (34... Ng7 {might work better.} 35. Qe2 Bxg2 36. Qxg2 c5 37. Rxd8+ Qxd8) 35. Qh6+ {[%emt 0:00:07]} (35. Qh8+ $142 Ke7 36. Rb2) 35... Ke7 $2 {[%emt 0:00:11]} (35... Kg8 36. Rd2 Qf6 37. Qxf6 Nxf6) 36. Rd2 $18 {[%emt 0:00:03]} Qf6 {[%emt 0:00:08]} 37. Re1+ {[%emt 0:00:12]} Kd7 {[%emt 0:00:06]} 38. Qh5 {[%emt 0:00:50]} Nc7 {[%emt 0:00:05]} (38... Kc8 {is tougher.} 39. Rf1 Qg6) 39. Rf1 {[%emt 0:00:07]} Qe6 {[%emt 0:00:15]} 40. Qxf7+ {[%emt 0:00:18]} Qxf7 {[%emt 0:00:01]} 41. Rxf7+ {[%emt 0:00:01]} Kd6 {[%emt 0:00:05]} 42. Bxd5 {[%emt 0:00:06]} cxd5 {[%emt 0:00:05][%mdl 4096] Endgame. KRR-KRN} 43. h4 {[%emt 0:00:01][%cal Bh3h4,Bh4h5,Bh5h6][%mdl 32]} a6 {[%emt 0:00:16][%cal Ba7a6,Ba6b5,Bb5b4][%mdl 32]} 44. Rf5 {[%emt 0:00:23]} b5 {[%emt 0:00:06]} 45. axb5 {[%emt 0:00:01] Threatens to win with b6.} axb5 {[%emt 0:00:01]} 46. g4 {[%emt 0:00:02]} b4 {[%emt 0:00:08]} 47. h5 {[%emt 0:00:01]} b3 {[%emt 0:00:06]} 48. Rf3 {[%emt 0:00:09]} Rb8 {[%emt 0:00:04]} 49. Rb2 {[%emt 0:00:01]} Rb4 {[%emt 0:00:02]} 50. Kg3 {[%emt 0:00:06]} Ne6 {[%emt 0:00:12]} 51. Rfxb3 {[%emt 0:00:04]} Re4 {[%emt 0:00:05]} 52. h6 {[%emt 0:00:16]} Ng5 {[%emt 0:00:10]} 53. Rf2 {[%emt 0:00:19]} Re7 {[%emt 0:00:16]} 54. Rf5 {[%emt 0:00:05]} Ne4+ {[%emt 0:00:03]} 55. Kf4 {[%emt 0:00:06]} Kc5 {[%emt 0:00:03]} 56. Ra3 {[%emt 0:00:11]} Kc4 {[%emt 0:00:17]} 57. Ra4+ {[%emt 0:00:01]} Kb5 {[%emt 0:00:03]} 58. Rxd5+ {[%emt 0:00:08]} Kxa4 {[%emt 0:00:03]} 59. Rd4+ {[%emt 0:00:01] White mates.} Kb5 {[%emt 0:00:03]} 60. Rxe4 {[%emt 0:00:02]} Rf7+ {[%emt 0:00:02]} 61. Kg5 {[%emt 0:00:02]} Kc5 {[%emt 0:00:02]} 62. Kg6 {[%emt 0:00:02] Weighted Error Value: White=0.64/Black=0.67.  Loses game:     	---       	Black=1      Mistake:       	White=4     	Black=8      Inaccurate:     	White=4     	Black=2      OK:         	White=7     	Black=4      Best:        	White=6     	Black=4      Strong:       	White=2     	---} 1-0

[Event "RLP-ch Rapid 2024"]
[Site "Landau"]
[Date "2024.05.04"]
[Round "5.5"]
[White "Lebzak, Jaroslav"]
[Black "Bruch, Jochen"]
[Result "1-0"]
[ECO "B81"]
[WhiteElo "2141"]
[BlackElo "2181"]
[Annotator "NA RC"]
[PlyCount "67"]
[EventDate "2024.05.03"]
[EventType "swiss"]
[EventCountry "GER"]
[SourceTitle "playchess.com"]
[Source "ChessBase"]
[SourceQuality "1"]
[TimeControl "900+5"]

1. e4 {[%emt 0:00:02]} c5 {[%emt 0:00:01]} 2. Nf3 {[%emt 0:00:02]} e6 {[%emt 0:00:01]} 3. d4 {[%emt 0:00:07]} cxd4 {[%emt 0:00:01]} 4. Nxd4 {[%emt 0:00:01]} Nf6 {[%emt 0:00:01]} 5. Nc3 {[%emt 0:00:02]} d6 {[%emt 0:00:02]} 6. g4 {[%emt 0:00:14]} h6 {[%emt 0:00:02]} 7. Rg1 {[%emt 0:00:07]} Nc6 {[%emt 0:00:02]} 8. h4 {[%emt 0:00:25]} h5 {[%emt 0:00:02]} 9. gxh5 {[%emt 0:00:22]} Nxh5 {[%emt 0:00:03]} 10. Be2 {[%emt 0:00:18]} g6 {[%emt 0:00:04]} 11. Bg5 {[%emt 0:00:26]} Qb6 {[%emt 0:00:01]} 12. Nb3 {[%emt 0:00:12]} a6 {[%emt 0:00:16]} 13. Qd2 {[%emt 0:00:22]} Bd7 {[%emt 0:00:18]} 14. O-O-O {[%emt 0:00:32]} Na5 {[%emt 0:00:56]} 15. Kb1 {[%emt 0:00:35]} Nxb3 {[%emt 0:00:03]} 16. axb3 {[%emt 0:00:01]} Qc7 {[%emt 0:01:39]} 17. f4 {[%emt 0:00:43]} b5 {[%emt 0:00:03]} 18. Bxh5 {[%emt 0:00:42]} Rxh5 {[%emt 0:00:18]} 19. Qd4 {[%emt 0:01:52]} Bc6 {[%emt 0:01:39]} 20. Rge1 {[%emt 0:00:34]} Rh7 {[%emt 0:00:45]} 21. Nd5 {[%emt 0:01:04]} Bxd5 {[%emt 0:00:50]} 22. exd5 {[%emt 0:00:10]} Bg7 {[%emt 0:00:36]} 23. Qd3 {[%emt 0:00:49]} e5 {[%emt 0:00:52]} 24. fxe5 {[%emt 0:00:16]} Bxe5 {[%emt 0:00:04]} 25. Bf6 {[%emt 0:02:41]} Kf8 {[%emt 0:02:40]} 26. Bxe5 {[%emt 0:00:27]} dxe5 {[%emt 0:00:02]} 27. d6 {[%emt 0:00:01]} Qc5 {[%emt 0:00:54]} 28. Qf3 {[%emt 0:00:30]} Rd8 {[%emt 0:00:11]} 29. Qf6 {[%emt 0:00:25]} Rd7 {[%emt 0:00:31]} 30. Rxe5 {[%emt 0:03:33]} Qc8 {[%emt 0:00:08]} 31. Rde1 {[%emt 0:00:00]} Qd8 {[%emt 0:00:10]} 32. Re7 {[%emt 0:00:00]} Qc8 {[%emt 0:00:27]} 33. Qe5 {[%emt 0:00:00]} Rd8 {[%emt 0:00:21]} 34. d7 {[%emt 0:00:00]} 1-0

[Event "RLP-ch Rapid 2024"]
[Site "Landau"]
[Date "2024.05.04"]
[Round "5.6"]
[White "Esswein, Karlheinz"]
[Black "Baerwinkel, Tobias"]
[Result "0-1"]
[ECO "A30"]
[WhiteElo "2022"]
[BlackElo "2289"]
[Annotator "NA RC"]
[PlyCount "58"]
[EventDate "2024.05.03"]
[EventType "swiss"]
[EventCountry "GER"]
[SourceTitle "playchess.com"]
[Source "ChessBase"]
[SourceQuality "1"]
[TimeControl "900+5"]

1. Nf3 {[%emt 0:00:03]} Nf6 {[%emt 0:00:01]} 2. b3 {[%emt 0:00:02]} c5 {[%emt 0:00:01]} 3. Bb2 {[%emt 0:00:00]} Nc6 {[%emt 0:00:02]} 4. e3 {[%emt 0:00:04]} g6 {[%emt 0:00:07]} 5. Be2 {[%emt 0:00:10]} Bg7 {[%emt 0:00:03]} 6. O-O {[%emt 0:00:03]} O-O {[%emt 0:00:04]} 7. c4 {[%emt 0:00:31]} d5 {[%emt 0:00:03]} 8. cxd5 {[%emt 0:00:08]} Qxd5 {[%emt 0:00:01]} 9. Nc3 {[%emt 0:00:06]} Qf5 {[%emt 0:00:02]} 10. Rc1 {[%emt 0:00:57]} Rd8 {[%emt 0:00:05]} 11. d3 {[%emt 0:00:23]} b6 {[%emt 0:00:19]} 12. Ne1 {[%emt 0:01:00]} Bb7 {[%emt 0:00:45]} 13. Bf3 {[%emt 0:00:07]} Rab8 {[%emt 0:00:39]} 14. Qe2 {[%emt 0:00:20]} Ne5 {[%emt 0:00:31]} 15. Bxb7 {[%emt 0:00:07]} Rxb7 {[%emt 0:00:02]} 16. d4 {[%emt 0:00:39]} cxd4 {[%emt 0:01:18]} 17. exd4 {[%emt 0:00:03]} Rxd4 {[%emt 0:00:15]} 18. Nc2 {[%emt 0:01:02]} Rd8 {[%emt 0:01:09]} 19. Ne3 {[%emt 0:00:19]} Qh5 {[%emt 0:00:47]} 20. Qxh5 {[%emt 0:01:44]} Nxh5 {[%emt 0:00:03]} 21. Ba3 {[%emt 0:00:01]} Nf4 {[%emt 0:01:15]} 22. Rfd1 {[%emt 0:00:34]} Ned3 {[%emt 0:02:44]} 23. Kf1 {[%emt 0:01:07]} Rc8 {[%emt 0:00:40]} 24. Ncd5 {[%emt 0:01:39]} Nxc1 {[%emt 0:00:23]} 25. Nxf4 {[%emt 0:00:17]} Nxa2 {[%emt 0:00:13]} 26. Nfd5 {[%emt 0:00:09]} e6 {[%emt 0:01:18]} 27. Ne7+ {[%emt 0:00:11]} Rxe7 {[%emt 0:00:01]} 28. Bxe7 {[%emt 0:00:02]} Rc1 {[%emt 0:00:01]} 29. Ke2 {[%emt 0:00:23]} Nc3+ {[%emt 0:00:01]} 0-1

[Event "RLP-ch Rapid 2024"]
[Site "Landau"]
[Date "2024.05.04"]
[Round "5.7"]
[White "Muranyi, Karl-Jasmin"]
[Black "Diesenhof, Michael"]
[Result "1-0"]
[ECO "D02"]
[WhiteElo "2338"]
[BlackElo "2016"]
[Annotator "TA"]
[PlyCount "64"]
[EventDate "2024.05.03"]
[EventType "swiss"]
[EventCountry "GER"]
[SourceTitle "playchess.com"]
[Source "ChessBase"]
[SourceQuality "1"]
[TimeControl "900+5"]

{[%evp 12,64,0,0,20,13,29,8,62,15,49,66,65,43,56,34,41,39,85,74,74,8,89,80,82,82,114,104,133,91,161,83,228,150,260,260,250,254,233,221,221,221,221,221,659,668,716,670,882,735,731,789,1177,1161,1060]} 1. d4 {[%emt 0:00:01]} Nf6 {[%emt 0:00:01]} 2. c3 {[%emt 0:00:02]} d5 {[%emt 0:00:14]} 3. Bf4 {[%emt 0:00:02]} e6 {[%emt 0:00:01]} 4. Nd2 {[%emt 0:00:01]} Bd6 {[%emt 0:00:01]} 5. Bg3 {[%emt 0:00:01]} c5 {[%emt 0:00:17]} 6. e3 {[%emt 0:00:02]} Nc6 {[%emt 0:00:01]} 7. Ngf3 {[%emt 0:00:01]} Bxg3 {[%emt 0:00:14]} 8. hxg3 {[%emt 0:00:02]} Qb6 {[%emt 0:00:53]} 9. Qb3 {[%emt 0:00:03]} c4 {[%emt 0:00:06]} (9... O-O $11) 10. Qa3 {[%emt 0:00:04]} (10. Qc2 $14) 10... Qa5 {[%emt 0:00:33]} 11. Qxa5 {[%emt 0:00:54]} Nxa5 {[%emt 0:00:01]} 12. Ne5 {[%emt 0:00:28]} Nd7 {[%emt 0:00:37]} 13. f4 {[%emt 0:00:10]} Rb8 {[%emt 0:00:25]} 14. b4 {[%emt 0:00:20][%cal Bb2b4,Bb4b5][%mdl 32]} Nxe5 {[%emt 0:01:43]} (14... Nc6 $14) 15. dxe5 $16 {[%emt 0:00:07]} (15. bxa5 Nc6 $15) 15... Nc6 {[%emt 0:00:01]} 16. Nf3 {[%emt 0:00:02]} ({White should play} 16. a4 $16) 16... Bd7 {[%emt 0:03:27]} (16... b5 $1 $11) 17. a4 {[%emt 0:00:07]} a5 {[%emt 0:00:15]} 18. b5 {[%emt 0:00:03]} Ne7 {[%emt 0:00:04]} 19. g4 {[%emt 0:00:06][%cal Bg3g4,Bg4g5][%mdl 32]} f6 {[%emt 0:01:51]} 20. g5 {[%emt 0:00:30] White is more active.} Nf5 {[%emt 0:00:21]} (20... fxg5 $16 21. Nxg5 h6) 21. Kf2 {[%emt 0:00:03]} ({Much less strong is} 21. exf6 gxf6 22. g4 (22. gxf6 Nxe3 23. Ra2 O-O $16) 22... Nxe3 $16) (21. gxf6 $18 {Kf2 would now be deadly.} gxf6 22. Kf2 (22. exf6 Nxe3 23. Ra2 O-O $16) 22... fxe5 23. Nxe5) 21... Kf7 {[%emt 0:00:20] This costs Black the game.} (21... fxe5 $16 {was necessary.} 22. Nxe5 Nd6) 22. Be2 {[%emt 0:00:30]} Rbf8 {[%emt 0:03:26]} (22... h5 $16) 23. g4 $18 {[%emt 0:00:13][%cal Bg2g4,Bg4g5][%mdl 32]} Ne7 {[%emt 0:00:07]} 24. gxf6 {[%emt 0:00:14]} gxf6 {[%emt 0:00:06]} 25. g5 {[%emt 0:01:10]} f5 {[%emt 0:00:21]} 26. Nd4 {[%emt 0:00:16][%cal Bf3d4,Bd4f5,Bf5h6][%mdl 32]} Rfg8 {[%emt 0:00:54]} 27. Rh6 {[%emt 0:00:10]} Nc8 $2 {[%emt 0:00:41] [#]} (27... Ng6 28. Bh5 Ke7) 28. Rah1 {[%emt 0:00:18] White is clearly winning.} Nb6 {[%emt 0:00:16]} 29. Bd1 {[%emt 0:01:04]} Kf8 {[%emt 0:00:04][%cal Bf7f8,Bf8e7,Be7d8][%mdl 32]} 30. Rf6+ {[%emt 0:00:19]} Ke7 {[%emt 0:00:03]} 31. Nxf5+ {[%emt 0:00:02]} Kd8 {[%emt 0:00:07]} 32. Nh6 {[%emt 0:00:08]} Rg7 {[%emt 0:00:14] Weighted Error Value: White=0.26 (precise) /Black=0.66.  Mistake:       	White=3     	Black=7      Inaccurate:     	White=2     	Black=2      OK:         	White=8     	Black=5      Best:        	White=1     	Black=1} 1-0